[Event "72nd RUS-ch Superfinal 2019"]
[Site "Izhevsk"]
[Date "2019.08.14"]
[Round "4.4"]
[White "Motylev, Alexander"]
[Black "Alekseenko, Kirill"]
[Result "1/2-1/2"]
[ECO "C44"]
[WhiteElo "2654"]
[BlackElo "2650"]
[Annotator "ChessBase"]
[PlyCount "90"]
[EventDate "2019.08.10"]
[EventType "tourn"]
[EventCountry "RUS"]
[SourceTitle "playchess.com"]
[Source "ChessBase"]
[SourceQuality "1"]
[TimeControl "40/5400+30:1800+30"]

1. e4 {[%emt 0:00:00]} e5 {[%emt 0:00:00]} 2. Nf3 {[%emt 0:00:00]} Nc6 {[%emt 0:00:08]} 3. d4 {[%emt 0:00:00]} exd4 {[%emt 0:00:36]} 4. Nxd4 {[%emt 0:00:00]} Nf6 {[%emt 0:01:31]} 5. Nc3 {[%emt 0:00:30]} Bb4 {[%emt 0:00:44]} 6. Nxc6 {[%emt 0:00:07]} bxc6 {[%emt 0:00:06]} 7. Bd3 {[%emt 0:00:06]} d5 {[%emt 0:03:50]} 8. exd5 {[%emt 0:00:21]} O-O {[%emt 0:00:24]} 9. O-O {[%emt 0:00:21]} cxd5 {[%emt 0:01:07]} 10. a3 {[%emt 0:02:05]} Bd6 {[%emt 0:10:22]} 11. Nb5 {[%emt 0:01:23]} Be5 {[%emt 0:07:44]} 12. f4 {[%emt 0:02:23]} Bd6 {[%emt 0:00:08]} 13. b4 {[%emt 0:00:52]} c5 {[%emt 0:22:19]} 14. Nxd6 {[%emt 0:06:53]} Qxd6 {[%emt 0:01:43]} 15. Kh1 {[%emt 0:00:52]} d4 {[%emt 0:03:20]} 16. bxc5 {[%emt 0:14:07]} Qxc5 {[%emt 0:00:13]} 17. Rb1 {[%emt 0:00:22]} Re8 {[%emt 0:09:49]} 18. Rb5 {[%emt 0:15:18]} Qc6 {[%emt 0:03:05]} 19. Re5 {[%emt 0:02:31]} Bb7 {[%emt 0:08:25]} 20. Qe2 {[%emt 0:01:03]} Rxe5 {[%emt 0:05:58]} 21. fxe5 {[%emt 0:02:37]} Re8 {[%emt 0:02:58]} 22. Bf4 {[%emt 0:29:43]} Nh5 {[%emt 0:00:12]} 23. Bc4 {[%emt 0:10:08]} d3 {[%emt 0:07:47]} 24. Bxd3 {[%emt 0:06:04]} Nxf4 {[%emt 0:00:06]} 25. Rxf4 {[%emt 0:00:06]} Rxe5 {[%emt 0:00:11]} 26. Qd2 {[%emt 0:00:35]} g6 {[%emt 0:06:03]} 27. Bf1 {[%emt 0:00:28]} Rd5 {[%emt 0:01:20]} 28. Qf2 {[%emt 0:00:55]} Rd1 {[%emt 0:00:15]} 29. Kg1 {[%emt 0:02:55]} Qd6 {[%emt 0:02:19]} 30. c4 {[%emt 0:01:40]} Bxg2 {[%emt 0:00:25]} 31. Kxg2 {[%emt 0:00:26]} Rd2 {[%emt 0:00:04]} 32. Be2 {[%emt 0:00:17]} Rxe2 {[%emt 0:00:52]} 33. Qxe2 {[%emt 0:00:09]} Qxf4 {[%emt 0:00:04]} 34. Qe7 {[%emt 0:00:57]} Qg4+ {[%emt 0:01:49]} 35. Kf2 {[%emt 0:00:11]} Qd4+ {[%emt 0:00:17]} 36. Kg2 {[%emt 0:00:16]} Qd2+ {[%emt 0:00:18]} 37. Kg1 {[%emt 0:00:22]} Qd4+ {[%emt 0:00:58]} 38. Kg2 {[%emt 0:00:09]} a5 {[%emt 0:00:34]} 39. c5 {[%emt 0:00:25]} Qb2+ {[%emt 0:00:24]} 40. Kg1 {[%emt 0:00:00]} Qb1+ {[%emt 0:00:00]} 41. Kg2 {[%emt 0:01:30]} Qb2+ {[%emt 0:07:27]} 42. Kg1 {[%emt 0:00:39]} Qd4+ {[%emt 0:00:27]} 43. Kg2 {[%emt 0:00:42]} Kg7 {[%emt 0:00:27]} 44. Qc7 {[%emt 0:01:30]} Qb2+ {[%emt 0:09:42]} 45. Kg1 {[%emt 0:02:03]} Qd4+ {[%emt 0:00:06]} 1/2-1/2

[Event "72nd RUS-ch Superfinal 2019"]
[Site "Izhevsk"]
[Date "2019.08.16"]
[Round "6.3"]
[White "Artemiev, Vladislav"]
[Black "Vitiugov, Nikita"]
[Result "0-1"]
[ECO "C48"]
[WhiteElo "2761"]
[BlackElo "2727"]
[Annotator "RC"]
[PlyCount "132"]
[EventDate "2019.08.10"]
[EventType "tourn"]
[EventCountry "RUS"]
[SourceTitle "playchess.com"]
[Source "ChessBase"]
[SourceQuality "1"]
[TimeControl "40/5400+30:1800+30"]

1. e4 {[%emt 0:00:00]} e5 {[%emt 0:00:00]} 2. Nf3 {[%emt 0:00:00]} Nc6 {[%emt 0:00:01]} 3. Nc3 {[%emt 0:00:19]} Nf6 {[%emt 0:00:08]} 4. Bb5 {[%emt 0:00:16]} Nd4 {[%emt 0:01:07]} 5. Bc4 {[%emt 0:00:20]} Bc5 {[%emt 0:01:13]} 6. O-O {[%emt 0:00:22]} d6 {[%emt 0:02:19]} 7. Nxd4 {[%emt 0:00:18]} Bxd4 {[%emt 0:00:40]} 8. d3 {[%emt 0:00:10]} Be6 {[%emt 0:09:12]} 9. Ne2 {[%emt 0:08:56]} Bb6 {[%emt 0:01:02]} 10. Ng3 {[%emt 0:00:10]} O-O {[%emt 0:03:50]} 11. Bb3 {[%emt 0:00:52]} a5 {[%emt 0:07:32]} 12. c3 {[%emt 0:10:49]} h6 {[%emt 0:01:19]} 13. h3 {[%emt 0:06:00]} d5 {[%emt 0:08:32]} 14. Qf3 {[%emt 0:07:11]} a4 {[%emt 0:01:36]} 15. Bc2 {[%emt 0:00:10]} Re8 {[%emt 0:00:47]} 16. Rd1 {[%emt 0:09:04]} d4 {[%emt 0:12:48]} 17. c4 {[%emt 0:03:11]} c6 {[%emt 0:02:23]} 18. Qe2 {[%emt 0:12:34]} Nd7 {[%emt 0:02:39]} 19. Bd2 {[%emt 0:01:26]} Ba5 {[%emt 0:03:18]} 20. b4 {[%emt 0:00:31]} axb3 {[%emt 0:00:12]} 21. axb3 {[%emt 0:00:06]} Bxd2 {[%emt 0:06:00]} 22. Qxd2 {[%emt 0:00:38]} Qb6 {[%emt 0:02:06]} 23. Qe1 {[%emt 0:08:22]} c5 {[%emt 0:05:45]} 24. Rdb1 {[%emt 0:02:03]} Qd6 {[%emt 0:02:15]} 25. Qc1 {[%emt 0:05:04]} Kh7 {[%emt 0:03:56]} 26. Ra3 {[%emt 0:02:47]} Reb8 {[%emt 0:03:56]} 27. Rba1 {[%emt 0:03:25]} Rxa3 {[%emt 0:00:55]} 28. Rxa3 {[%emt 0:00:09]} g6 {[%emt 0:02:57]} 29. Ra7 {[%emt 0:02:29]} Kg7 {[%emt 0:01:29]} 30. Kh2 {[%emt 0:02:19]} Nf6 {[%emt 0:01:29]} 31. Bd1 {[%emt 0:01:07]} Ng8 {[%emt 0:01:24]} 32. Be2 {[%emt 0:03:58]} Ne7 {[%emt 0:01:40]} 33. h4 {[%emt 0:02:02]} Nc6 {[%emt 0:01:01]} 34. Ra3 {[%emt 0:01:55]} Qd8 {[%emt 0:01:15]} 35. h5 {[%emt 0:00:07]} Ra8 {[%emt 0:01:22]} 36. hxg6 {[%emt 0:03:37]} fxg6 {[%emt 0:00:19]} 37. Rxa8 {[%emt 0:02:06]} Qxa8 {[%emt 0:00:01]} 38. Kg1 {[%emt 0:00:13]} Qa5 {[%emt 0:05:47]} 39. f4 {[%emt 0:00:59]} exf4 {[%emt 0:04:03]} 40. Qxf4 {[%emt 0:00:00]} Qd8 {[%emt 0:00:00]} 41. Nf1 {[%emt 0:09:46]} Qb8 {[%emt 0:04:15]} 42. Qh4 {[%emt 0:02:05]} Qe5 {[%emt 0:02:17]} 43. Nh2 {[%emt 0:07:02]} Qf6 {[%emt 0:02:31]} 44. Qg3 {[%emt 0:00:31]} Qe5 {[%emt 0:00:17]} 45. Qh4 {[%emt 0:00:20]} h5 {[%emt 0:09:28]} 46. Nf3 {[%emt 0:01:37]} Qf6 {[%emt 0:00:12]} 47. Qg3 {[%emt 0:06:26]} Bg4 {[%emt 0:00:41]} 48. Kf2 {[%emt 0:02:16]} Kh6 {[%emt 0:02:31]} 49. Qc7 {[%emt 0:00:42]} h4 {[%emt 0:05:42]} 50. Qxb7 {[%emt 0:00:37]} Bxf3 {[%emt 0:02:59]} 51. gxf3 {[%emt 0:00:05]} Qd6 {[%emt 0:01:50]} 52. e5 {[%emt 0:04:34]} Nxe5 {[%emt 0:00:16]} 53. f4 {[%emt 0:03:08]} Nd7 {[%emt 0:01:38]} 54. Bf3 {[%emt 0:00:36]} Nf6 {[%emt 0:01:46]} 55. Qf7 {[%emt 0:00:44]} h3 {[%emt 0:01:20]} 56. Kg3 {[%emt 0:00:51]} h2 {[%emt 0:00:49]} 57. Kxh2 {[%emt 0:00:33]} Qxf4+ {[%emt 0:00:05]} 58. Kg2 {[%emt 0:00:03]} Nh5 {[%emt 0:01:23]} 59. Qd5 {[%emt 0:00:54]} Qd2+ {[%emt 0:00:21]} 60. Kg1 {[%emt 0:00:15]} Qe1+ {[%emt 0:00:05]} 61. Kh2 {[%emt 0:00:07]} Qf2+ {[%emt 0:00:12]} 62. Bg2 {[%emt 0:00:12]} Nf4 {[%emt 0:00:21]} 63. Qa8 {[%emt 0:00:28]} Qxg2+ {[%emt 0:00:39]} 64. Qxg2 {[%emt 0:00:07]} Nxg2 {[%emt 0:00:03]} 65. Kxg2 {[%emt 0:00:10]} Kg5 {[%emt 0:00:28]} 66. Kg3 {[%emt 0:01:28]} Kf5 {[%emt 0:00:13]} 0-1